Cogmind - Beta 16.1 @@@ ROGUE MODE // 2026.03.06 @ 18:12:36 Player: star Result: Self-destructed Performance ------------- Evolutions (4) 2000 Regions Visited (5) 1000 Robots Destroyed (12) 60 Value Destroyed (492) 492 Prototype IDs (28) 560 Alien Tech Used (0) 0 Bonus (1025) 1025 TOTAL SCORE: 5137 Bonus ------- Follower Combat Kills 40 Entered Garrisons 200 Registered with UFD 300 Met Optimus in HQ 500 Friendly Fire -15 Cogmind --------- Core Integrity 723/850 Matter 111/300 Energy 100/100 System Corruption 0% Temperature Cool (0) Movement Walking (130) Location -6/Garrison Parts ------- > --- POWER (2) -------- (None) > --- PROPULSION (4) --- Cargo Legs > --- UTILITY (4+2) ---- Scrap Suit Large Storage Unit Spectral Analyzer Makeshift Salvage Targeting Computer (+) Makeshift Salvage Targeting Computer (+) > --- WEAPON (5) ------- (None) > --- INVENTORY (15) --- Meta Core Makeshift Salvage Targeting Computer ID Mask Remote Force Field Makeshift Hacking Suite Enhanced Autogun Gauss Rifle Heavy Battle Rifle CPS Tube (2) Peak State ------------ > --- POWER ------------ Enhanced Nuclear Core Micro Fission Core > --- PROPULSION ------- Carbon-fiber Leg Cargo Legs > --- UTILITY ---------- Scrap Suit Large Storage Unit Spectral Analyzer Makeshift Salvage Targeting Computer Makeshift Salvage Targeting Computer > --- WEAPON ----------- 1B-0RG's Assimilator > --- INVENTORY -------- Meta Core Makeshift Salvage Targeting Computer ID Mask Remote Force Field Makeshift Hacking Suite Enhanced Autogun Gauss Rifle Heavy Battle Rifle CPS Tube [Rating: 126] Favorites ----------- Power Ion Engine Engine Ion Engine Power Core Micro Fission Core Propulsion Wheel Leg Cargo Legs Wheel Wheel Utility Spectral Analyzer Device Disposable Heat Sink Storage Small Storage Unit Processor Spectral Analyzer Weapon Spread Laser Energy Gun Spread Laser Energy Cannon Subdweller Beam Cannon Ballistic Gun Makeshift Shrapnel Gun Special Melee Weapon 1B-0RG's Assimilator Build | -11 -10 -10 -9 -6 -6 ------- Run | Yrd Mat Sub Scr Fac Gar Slots Evolved 8 | . . . . 8 . Power 1 | . . . . 1 . Propulsion 2 | . . . . 2 . Utility 2 | . . . . 2 . Weapon 3 | . . . . 3 . Parts Attached 32 | 6 4 5 13 3 1 Power 3 | 1 . . 1 1 . Engine 1 | 1 . . . . . Core 2 | . . . 1 1 . Reactor . | . . . . . . Propulsion 7 | 2 . 1 3 . 1 Treads . | . . . . . . Leg 4 | . . . 3 . 1 Wheel 3 | 2 . 1 . . . Hover . | . . . . . . Flight . | . . . . . . Utility 9 | 1 2 . 5 1 . Device 3 | . 2 . . 1 . Storage 3 | 1 . . 2 . . Processor 3 | . . . 3 . . Hackware . | . . . . . . Protection . | . . . . . . Artifact . | . . . . . . Weapon 13 | 2 2 4 4 1 . Energy Gun 7 | 2 2 2 1 . . Energy Cannon 1 | . . 1 . . . Ballistic Gun 4 | . . 1 3 . . Ballistic Cannon . | . . . . . . Launcher . | . . . . . . Special Weapon . | . . . . . . Impact Weapon . | . . . . . . Slashing Weapon . | . . . . . . Piercing Weapon . | . . . . . . Special Melee Weapon 1 | . . . . 1 . Unidentified Prototypes 3 | . . . 1 2 . Corrupted Parts 1 | . . . 1 . . System Corruption 5 | . . . 5 . . Parts Lost 10 | . . 2 4 . 4 Power 2 | . . . . . 2 Propulsion 4 | . . 1 2 . 1 Utility . | . . . . . . Weapon 4 | . . 1 2 . 1 Highest Loss Streak 4 | . . 1 3 . 4 To Critical Strikes . | . . . . . . Average Backups 5 | 1 7 6 4 8 8 Power . | . 1 . . . . Propulsion . | . . . . . . Utility 2 | . 3 2 1 4 3 Weapon 1 | . 2 2 . 1 3 Tool/Special . | . . . . . . Unused Backups 16 | . 1 6 3 . 6 Power 1 | . . 1 . . . Propulsion . | . . . . . . Utility 9 | . . 3 2 . 4 Weapon 3 | . 1 2 . . . Tool/Special 3 | . . . 1 . 2 Average Slot Usage (%) 87 | . 97 93 96 51 53 Engine 9 | . 14 14 11 . . Core 3 | . . . 2 10 10 Leg 3 | . . . 3 5 6 Wheel 18 | . 28 22 22 . . Device 6 | . 11 14 4 . 5 Storage 12 | . 14 14 13 5 5 Processor 9 | . . . 11 17 17 Energy Gun 13 | . 28 25 12 . . Ballistic Gun 8 | . . 1 13 10 . Peak Build Rating 126 | 6 11 22 58 122 126 Average Rating 40 | 4 10 12 30 63 122 On Entrance 36 | . 6 11 22 58 122 Avg Prop Armor Cover (%) 5 | . . 5 5 . . Naked Turns . | . . . . . . Heaviest Build 92 | 14 18 22 32 40 92 Greatest Support 70 | 20 20 30 55 55 70 Greatest Overweight (x) 2 | 2 . 2 2 . 1 Average Overweight (x) . | . . . 1 . 1 Largest Inventory Capacity 15 | 8 8 8 15 15 15 Average Capacity 11 | 7 8 8 11 15 15 Most Carried 15 | 2 8 8 15 14 9 Average Carried 9 | 1 7 7 9 12 8 Final Capacity 15 | 8 8 8 15 15 15 Final Carried 13 | 2 8 8 13 8 9 Scrap Suit Usage (%) 14 | . . . . 1 100 Class Distribution -------------------- 84% | Mutant 15% | Scavenger-Mutant Dominant Class ---------------- Mutant | -10/Materials Mutant | -10/Subcaves Mutant | -9/Scraptown Scavenger-Mutant | -6/Factory Mutant | -6/Garrison Resources | -11 -10 -10 -9 -6 -6 ----------- Run | Yrd Mat Sub Scr Fac Gar Matter Collected 779 | 237 63 50 276 . 153 Remotely . | . . . . . . Salvage Created 490 | . 2 123 365 . . Parts 18 | . 1 4 13 . . Haulers Intercepted . | . . . . . . Recyclers Shooed . | . . . . . . Parts Field Recycled . | . . . . . . Retrieved Matter . | . . . . . . Parts Self-Destructed 12 | . . 12 . . . Prevented . | . . . . . . Parts Restored . | . . . . . . Kills | -11 -10 -10 -9 -6 -6 ------- Run | Yrd Mat Sub Scr Fac Gar Combat Hostiles Destroyed 11 | . . 5 6 . . Guns 11 | . . 5 6 . . Classes Destroyed 5 | . 1 1 3 . . Operator 1 | . 1 . . . . Subdweller 5 | . . 5 . . . Explorer 1 | . . . 1 . . Guru 1 | . . . 1 . . Scrapper 4 | . . . 4 . . Best Kill Streak 2 | . 1 2 2 . . Combat Bots Only 2 | . . 2 2 . . Max Kills in Single Turn 1 | . 1 1 1 . . Gunslinging . | . . . . . . Exploded . | . . . . . . Melee . | . . . . . . Uniques/NPCs Destroyed . | . . . . . . Combat | -11 -10 -10 -9 -6 -6 -------- Run | Yrd Mat Sub Scr Fac Gar Hostile Shots Fired 204 | . . 25 48 . 131 Missed 79 | . . 9 16 . 54 Hits 125 | . . 16 32 . 77 Melee 3 | . . . 1 . 2 Projectile 122 | . . 16 31 . 75 AOE 1 | . . . . . 1 Critical Strikes 7 | . . 1 3 . 3 Damage Taken 2005 | . . 339 547 . 1119 Core 329 | . . 129 73 . 127 Absorbed by Shields . | . . . . . . Regen/Repaired (Parts) 46 | . . . . . 46 Core Remaining (%) 59 | 100 . . 19 . . Volleys Fired 61 | . 2 32 27 . . Largest 2 | . 2 2 2 . . Hottest 145 | . 130 145 105 . . Shots Fired 115 | . 4 64 47 . . Gun 113 | . 4 62 47 . . Cannon 2 | . . 2 . . . Launcher . | . . . . . . Special . | . . . . . . Kinetic 39 | . . . 39 . . Thermal 76 | . 4 64 8 . . Explosive . | . . . . . . Electromagnetic . | . . . . . . Robot Hit Streak 13 | . 3 13 10 . . Robot Miss Streak 10 | . 4 6 10 . . Penetration Max . | . . . . . . Secondary Targets . | . . . . . . Shots Hit Robots 64 | . 4 33 27 . . Core Hits 40 | . 5 23 12 . . Critical Kills . | . . . . . . Critical Parts Destroyed 1 | . . 1 . . . Critical Strikes 1 | . . 1 . . . Destroy 1 | . . 1 . . . Melee Attacks . | . . . . . . Impact . | . . . . . . Slashing . | . . . . . . Piercing . | . . . . . . Sneak Attacks . | . . . . . . Combat Hostiles . | . . . . . . Follow-up Attacks . | . . . . . . Damage Inflicted 1117 | . 32 577 508 . . Guns 1117 | . 32 577 508 . . Cannons . | . . . . . . Explosions . | . . . . . . Melee . | . . . . . . Ramming . | . . . . . . Kinetic 383 | . . . 383 . . Thermal 734 | . 32 577 125 . . Explosive . | . . . . . . Electromagnetic . | . . . . . . Impact . | . . . . . . Slashing . | . . . . . . Piercing . | . . . . . . Highest Corruption 5 | . . . 5 . . Average Corruption 5 | . . . 5 . . Corruption Purged . | . . . . . . Corruption Blocked . | . . . . . . Effects 2 | . . . 2 . . Message Errors 1 | . . . 1 . . Data Loss (minor) 1 | . . . 1 . . Overload Shots . | . . . . . . Overflow Damage . | . . . . . . Projectiles . | . . . . . . Explosions . | . . . . . . Melee . | . . . . . . Knockbacks . | . . . . . . Impact . | . . . . . . Kinetic . | . . . . . . Secondary . | . . . . . . Self-Inflicted Damage . | . . . . . . Shots . | . . . . . . Rammed . | . . . . . . Targets Rammed . | . . . . . . Kicked . | . . . . . . Crushed . | . . . . . . Highest Temperature 344 | . 138 70 344 . 21 Average Temperature 86 | . 74 21 145 . 8 Received Heat Transfer 711 | . . 102 333 . 276 Effects 2 | . . . 2 . . Energy Bleed 2 | . . . 2 . . Siege Activations . | . . . . . . Martial Activations . | . . . . . . Shielding Activations . | . . . . . . Robots Disrupted . | . . . . . . Combat Hostiles . | . . . . . . Robots Corrupted . | . . . . . . Combat Hostiles . | . . . . . . Parts Fried . | . . . . . . Impact Corruptions . | . . . . . . Robots Melted . | . . . . . . Combat Hostiles . | . . . . . . Parts Melted 6 | . . 3 3 . . Heat Transferred 959 | . 40 705 214 . . Parts Sabotaged . | . . . . . . Parts Stolen . | . . . . . . Parts Stripped . | . . . . . . Power Chain Reactions . | . . . . . . Alert | -11 -10 -10 -9 -6 -6 ------- Run | Yrd Mat Sub Scr Fac Gar Maximum Alert Level . | . . . . . . Low Security (%) 100 | 100 100 . . 100 100 Level 1 . | . . . . . . Level 2 . | . . . . . . Level 3 . | . . . . . . Level 4 . | . . . . . . Level 5 . | . . . . . . High Security . | . . . . . . Max Security . | . . . . . . Peak Influence 23 | . 5 . . . 23 Initial 9 | . . . . . 9 Average 4 | . . . . . 8 Influence Increases 47 | . 5 . . 14 28 Destroy 0b10 Robot/C 20 | . . . . . 20 Destroy 0b10 Robot/NC 5 | . 5 . . . . Allied During Kill 3 | . . . . . 3 Successful Hack 14 | . . . . 14 . Destroy Structure 5 | . . . . . 5 Influence Decreases 47 | . 5 . . . 42 Entered New Map 5 | . . . . . 5 Time Decay 5 | . 5 . . . . Lost Part 8 | . . . . . 8 Lost Ally 29 | . . . . . 29 Squads Dispatched 1 | . 1 . . . . Investigation . | . . . . . . Extermination . | . . . . . . Reinforcement 1 | . 1 . . . . Assault . | . . . . . . Garrison . | . . . . . . Intercept . | . . . . . . Searches Triggered . | . . . . . . Construction Impeded . | . . . . . . Haulers Reinforced . | . . . . . . Active Scanning Responses . | . . . . . . Cargo Convoy Interrupts . | . . . . . . Stealth | -11 -10 -10 -9 -6 -6 --------- Run | Yrd Mat Sub Scr Fac Gar Distress Signals . | . . . . . . Communications Jammed . | . . . . . . Distress Signals . | . . . . . . Times Spotted 54 | . 1 8 25 . 20 Peak Tracking Total 14 | . 1 3 5 . 14 Tactical Retreats . | . . . . . . Traps | -11 -10 -10 -9 -6 -6 ------- Run | Yrd Mat Sub Scr Fac Gar Traps Triggered 2 | . . . . . 2 Indirectly . | . . . . . . Trap Hack Attempts . | . . . . . . Triggered . | . . . . . . Disarmed . | . . . . . . Reprogrammed . | . . . . . . Reused . | . . . . . . Traps Extracted . | . . . . . . Installed . | . . . . . . Triggered . | . . . . . . Machines | -11 -10 -10 -9 -6 -6 ---------- Run | Yrd Mat Sub Scr Fac Gar Machines Disabled 2 | . . 1 1 . . Max in Single Turn 1 | . . 1 1 . . Machines Repaired . | . . . . . . Machines Dismantled . | . . . . . . Machines Sabotaged . | . . . . . . Overloaded Fab Kills . | . . . . . . Hacking | -11 -10 -10 -9 -6 -6 --------- Run | Yrd Mat Sub Scr Fac Gar Machines Accessed 6 | . . 1 4 1 . Terminals . | . . . . . . Fabricators . | . . . . . . Repair Stations . | . . . . . . Recycling Units . | . . . . . . Scanalyzers . | . . . . . . Garrison Access 1 | . . . . 1 . Total Hacks 26 | . . 5 20 1 . Successful 26 | . . 5 20 1 . Failed . | . . . . . . Catastrophic . | . . . . . . Database Lockouts . | . . . . . . Manual . | . . . . . . Terminals . | . . . . . . Fabricators . | . . . . . . Repair Stations . | . . . . . . Recycling Units . | . . . . . . Scanalyzers . | . . . . . . Garrison Access 1 | . . . . 1 . Terminal Hacks 25 | . . 5 20 . . Record 23 | . . 4 19 . . Proto ID Catalog 2 | . . 1 1 . . Fabricator Hacks . | . . . . . . Repair Station Hacks . | . . . . . . Recycling Unit Hacks . | . . . . . . Scanalyzer . | . . . . . . Garrison Access Hacks 1 | . . . . 1 . Unlock Access 1 | . . . . 1 . Unauthorized Hacks . | . . . . . . Terminals . | . . . . . . Fabricators . | . . . . . . Repair Stations . | . . . . . . Recycling Units . | . . . . . . Scanalyzers . | . . . . . . Garrison Access . | . . . . . . Data Cores Recovered . | . . . . . . Used . | . . . . . . Hacking Detections 1 | . . . . 1 . Full Trace Events . | . . . . . . Feedback Events . | . . . . . . Feedback Blocked . | . . . . . . Robot Schematics Acquired . | . . . . . . Robots Built . | . . . . . . Authchips . | . . . . . . Time . | . . . . . . Total Robot Build Rating . | . . . . . . Part Schematics Acquired . | . . . . . . Parts Built . | . . . . . . Authchips . | . . . . . . Time . | . . . . . . Total Part Build Rating . | . . . . . . Part Studies Acquired . | . . . . . . Parts Repaired . | . . . . . . Time . | . . . . . . Parts Recycled . | . . . . . . Recycled Matter . | . . . . . . Retrieved Matter . | . . . . . . Retrieved Components . | . . . . . . Parts Scanalyzed . | . . . . . . Part Schematics Acquired . | . . . . . . Parts Damaged . | . . . . . . Bothacking | -11 -10 -10 -9 -6 -6 ------------ Run | Yrd Mat Sub Scr Fac Gar Used RIF Installer . | . . . . . . Robots Hacked . | . . . . . . Non-combat . | . . . . . . Combat . | . . . . . . Robot Hacks Applied . | . . . . . . Relay Couplers Released . | . . . . . . Fabnet Peak Effective % . | . . . . . . Robots Rewired . | . . . . . . Allies Hacked . | . . . . . . Hacks Repelled . | . . . . . . Allies | -11 -10 -10 -9 -6 -6 -------- Run | Yrd Mat Sub Scr Fac Gar Total Allies . | . . . . . . Largest Group . | . . . . . . Highest-Rated Group . | . . . . . . Highest-Rated Ally . | . . . . . . Total Orders . | . . . . . . Ally Attacks 31 | . . . . . 31 Total Damage 483 | . . . . . 483 Kills 1 | . . . . . 1 Allies Corrupted . | . . . . . . Allies Melted 7 | . . . 6 . 1 Borg Created 4 | . . . . . 4 Largest Collective 3 | . . . . . 3 Intel | -11 -10 -10 -9 -6 -6 ------- Run | Yrd Mat Sub Scr Fac Gar Active Infowar (turns) 1458 | . . . 947 130 381 Optics 1458 | . . . 947 130 381 Robot Analysis Total . | . . . . . . Derelict Logs Recovered 3 | . . 2 1 . . Drone Launches . | . . . . . . Drone Recoveries . | . . . . . . Exploration | -11 -10 -10 -9 -6 -6 ------------- Run | Yrd Mat Sub Scr Fac Gar Turns Passed 2640 | 46 162 568 1353 130 381 Spaces Moved 1951 | 45 64 400 1189 95 158 Core 5 | 5 . . . . . Treads . | . . . . . . Legs 393 | . . . 140 95 158 Wheels 1553 | 40 64 400 1049 . . Hover . | . . . . . . Flight . | . . . . . . Fastest Speed 50 | 50 80 80 95 130 195 Average Speed 110 | 78 80 95 105 130 198 Slowest Speed 270 | 150 80 110 270 130 200 Overloaded Moves . | . . . . . . Propulsion Burnouts . | . . . . . . Robots Hopped . | . . . . . . Potential Cave-ins 2 | . . 2 . . . Cave-ins Triggered . | . . . . . . Exploration Rate (%) 22 | 4 14 26 57 3 30 Regions Visited 5 Branch Regions 2 Pre-discovered Areas 1 | . . 1 . . . Known Exits Taken 2 | . . . 1 1 . Unknown Exits Taken 3 | 1 1 1 . . . Scrap Searched 2 | . . 2 . . . Spaces Dug 3 | . . 3 . . . Terrain Destroyed 5 | . . 4 1 . . Melee . | . . . . . . Projectile 5 | . . 4 1 . . AOE . | . . . . . . Terrain Rammed . | . . . . . . Walls Destroyed . | . . . . . . Machines Disabled . | . . . . . . Actions | -11 -10 -10 -9 -6 -6 --------- Run | Yrd Mat Sub Scr Fac Gar Total 2316 | 52 169 525 1253 101 216 Wait 215 | . 92 74 8 . 41 Move 1947 | 44 63 399 1188 95 158 Hop . | . . . . . . Pick Up 23 | 2 6 5 9 . 1 Fast Attach 13 | 6 1 1 3 1 1 Attach 5 | . . 1 2 2 . Detach 2 | . . . . 2 . Swap 16 | . 3 3 9 1 . Drop 19 | . 2 10 7 . . Fire 61 | . 2 32 27 . . Melee . | . . . . . . Ram . | . . . . . . Kick . | . . . . . . Crush . | . . . . . . Escape Stasis 10 | . . . . . 10 Rewire 1 | . . . . . 1 Trap . | . . . . . . Miscellaneous 4 | . . . . . 4 Route ------- -11/Scrapyard -10/Materials -10/Subcaves -9/Scraptown (discovered 2 exits: *Fac x2) -6/Factory -6/Garrison History --------- Turn | Location | Event 10 | -11/Scrapyard | Discovered new exit (range 15) 47 | -11/Scrapyard | Entered Materials 207 | -10/Materials | Discovered new exit (range 4) 209 | -10/Materials | Entered Subcaves 210 | -10/Subcaves | Approached by a straggling Scientist 231 | -10/Subcaves | Learned location of Zion (-6) 231 | -10/Subcaves | Met a Zionite searching for "candidates" 301 | -10/Subcaves | Build established: Mutant 497 | -10/Subcaves | A Subdweller sparked back to life 497 | -10/Subcaves | A Subdweller sparked back to life 498 | -10/Subcaves | Core integrity fell below 50% 555 | -10/Subcaves | Found Prototype Leg 570 | -10/Subcaves | Learned Materials garrison access intel 575 | -10/Subcaves | Shifting Twisted Machinery released Mak. Light Armor Plating 578 | -10/Subcaves | Shifting Twisted Machinery released Sub. Shrapnel Launcher 671 | -10/Subcaves | Visited 4L-MR0's lab 676 | -10/Subcaves | Identified Cargo Legs 689 | -10/Subcaves | Found Prototype Special Melee Weapon 696 | -10/Subcaves | Found Meta Core 777 | -10/Subcaves | Entered Scraptown 853 | -9/Scraptown | Visited Junk Repository 879 | -9/Scraptown | Visited Fellowship of the Rings 906 | -9/Scraptown | Visited Science Testing Area 938 | -9/Scraptown | Visited TADAMA 977 | -9/Scraptown | Scanned Subdweller tech in exchange for log data 980 | -9/Scraptown | Learned Factory terminal intel 1027 | -9/Scraptown | Visited UFD Registry 1027 | -9/Scraptown | Registered with UFD as "Pyromachine" 1103 | -9/Scraptown | Visited Scrap Suit Storage 1133 | -9/Scraptown | Visited Chapter 10 1151 | -9/Scraptown | Visited Infowarlord's Domain 1183 | -9/Scraptown | Found Spectral Analyzer 1207 | -9/Scraptown | Visited Junk Repository 1237 | -9/Scraptown | Visited Abandonware Association 1313 | -9/Scraptown | Discovered new exit (range 3) 1362 | -9/Scraptown | Visited Scrapoid Pod Storage 1394 | -9/Scraptown | Visited Science Guys 1656 | -9/Scraptown | Met Optimus 1656 | -9/Scraptown | Accepted into 0bPrime 1745 | -9/Scraptown | Civil war broke out across Scraptown 1784 | -9/Scraptown | Found ID Mask 1789 | -9/Scraptown | Lost 3 allies 1819 | -9/Scraptown | Identified exit to Factory 1827 | -9/Scraptown | Found Scrap Suit 1965 | -9/Scraptown | Attached Cargo Legs, gained temporary slots: Utility x2 1996 | -9/Scraptown | Lost 3 parts (2n1w) 2008 | -9/Scraptown | Core integrity fell below 20% 2065 | -9/Scraptown | Lost 6 allies 2115 | -9/Scraptown | Optimus destroyed in the chaos of civil war 2130 | -9/Scraptown | Entered Factory 2130 | -6/Factory | Evolved 8 slots: Power x1, Propulsion x2, Utility x2, Weapon x3 2131 | -6/Factory | Loaded intel: 28 terminal locations 2161 | -6/Factory | Lost 6 allies 2168 | -6/Factory | Build established: Scavenger-Mutant 2258 | -6/Factory | Identified 1B-0RG's Assimilator 2260 | -6/Factory | Identified exit to Garrison 2260 | -6/Factory | Entered Garrison 2334 | -6/Garrison | Triggered checkpoint 2338 | -6/Garrison | Assimilating Fighter 5a into Collective. 2347 | -6/Garrison | Assimilating Gladiator 5a into Collective. 2416 | -6/Garrison | Triggered checkpoint 2427 | -6/Garrison | Assimilating Slicer 5a into Collective. 2549 | -6/Garrison | Build established: Mutant 2600 | -6/Garrison | Triggered checkpoint 2607 | -6/Garrison | Triggered checkpoint 2613 | -6/Garrison | Triggered checkpoint 2615 | -6/Garrison | Assimilating Guardian 5a into Collective. 2641 | -6/Garrison | Self-destructed Last Messages --------------- 02613_ Acquired 63 matter. 02615_ Borg Fighter 5a destroyed. 02615_ Core damaged by loss of Borg Fighter 5a (-8). 02615_ Critical hit (Burn: +37). 02615_ 1B-0RG's Assimilator injects Guardian 5a to begin assimilation process, ETC: 18. 02616_ Critical hit (Burn: +37). 02617_ Mic. Fission Core destroyed. 02619_ Borg Gladiator 5a suffers critical hit (Burn). Garrison Door activated. 02628_ Borg Gladiator 5a overheating. 02630_ Enh. Nuclear Core destroyed. 02630_ Borg Gladiator 5a overheating. 02631_ Borg Gladiator 5a critical meltdown. 02631_ Core damaged by loss of Borg Gladiator 5a (-8). 02632_ Carbon-fiber Leg destroyed. 02635_ Borg Guardian 5a destroyed. 02635_ Core damaged by loss of Borg Guardian 5a (-8). 02640_ 1B-0RG's Assimilator destroyed. 02640_ S-27 Virus destroyed. Map ----- +----------------------------------------------------+ | ?????????????????????????????????????????????????? | | ?????????????????????????????????????????????????? | | ?????????????????????????????????????????????????? | | ????????#????????######??????????????????????????? | | ????????# ???????# #??????????????????????????? | | ????????#+######## ##########?????????????????? | | ????????? "%" ??????????????????? | | ?????????? " ???????????????????? | | ??????????? ????????????????????? | | ????????????# ## ## #?????????????????????? | | ??????????### ## ## ###???????????????????? | | ??????????# #???????????????????? | | ??????????# #???????????????????? | | ??????????# #???????????????????? | | ??????????? ????????????????????? | | ????????????# ## ## s#?????????????????????? | | ????????????# %## ## #?????????????????????? | | ??????????# # ! = #?????????????????????? | | ??????????# " *=%! #?????????????????????? | | ??????????# # =%=![ gg #?????????????????????? | | ????????????# ^##[= ##gs##?????????????????????? | | ????????????# ^^## ##s #??????????????????????? | | ????????????# ######## #??????????????????????? | | ????????????# #??????# #??????????????????????? | | ????????????# #??????# #??????????????????????? | | ????????????# #??????# @#??????????????????????? | | ????????????# #??????# #??????????????????????? | | ############# #??????# #??????????????????????? | | #??????# ??????????????????????? | | #??????# ??????????????????????? | | #??????#####?????????????????????? | | #### ###########????????????????????????????????? | | ???# #??????????????????????????????????????????? | | ???# #??????????????????????????????????????????? | | ?### #??????????????????????????????????????????? | | ?# ! ##### #????????????????????????????????????? | | ?#* = #????????????????????????????????????? | | ?# #########??????????????????????????????????? | | ?### ### !!!!#??????????????????????????????????? | | ???# !#??????????????????????????????????? | | ???# !#??????????????????????????????????? | | ???# ###!!!!!#??????????????????????????????????? | | ???# #?#######??????????????????????????????????? | | #### ##?????????????????????????????????????????? | | #?????????????????????????????????????????? | | ^ #?????????????????????????????????????????? | | #?????????????????????????????????????????? | | [[[[[[[#?????????????????????????????????????????? | | ########?????????????????????????????????????????? | | ?????????????????????????????????????????????????? | +----------------------------------------------------+ Best States ------------- Heat Dissipation 47 Coolant Potential 50 Energy Generation 27 Energy Capacity 350 Matter Stores 300 Matter Capacity 300 Sight Range 24 Terrain Scan Density 10 Evasion (%) 55 Salvage Targeting 8 Item Schematics ----------------- None Robot Schematics ------------------ None Fabricated ------------ Nothing Repaired ---------- Nothing Studied --------- None Alien Tech Used ----------------- None Achievements -------------- Civilization 2243 I, Locutus Link The Feds Uncivil War Challenges ------------ None Game ------ Seed HackingDisassembledEdition Manual? 0 Play Time 00:38:34 Cumulative 165.1 hours Start 2026.03.05 @ 22:50:46 End 2026.03.06 @ 18:12:36 Sessions 1 Manual Loads 0 Difficulty Rogue Special Mode None Game No. 284 Rogue 284 Adventurer 0 Explorer 0 Win Type - Total 1 Types 1/0/0/0/0/0/0/0/0/0 Lore% 55 Gallery% 56 Achievement% 35 Wizard Run 0 Options --------- Layout 0 ASCII 0 Keyboard 1 Movement Numpad Keybinds 0 Fullscreen 2 Font 18/SmallcapsGlow Map View 76x50 Zoom Use 0% Tactical HUD 1 Map Filters NONE Filters NONE Steam 1 RUN: 7cb685ae-1db5-403f-9109-0566fd2dc7c7